{"text_format":"3","workbook":"xlsx","n_sheets":4,"sheets":["Készpénzforgalom","Havi bevétel","Havi kiadás","DIAGRAMADATOK"],"not_rendered":{"charts":1,"defined_names":10},"read":"whole","date_system":"1900"}

{"sheet":"Készpénzforgalom","index":0,"n_rows":9,"n_cols":5,"rows_kept":9}
[null,"Név"]
[null,"Családi költségvetés"]
[null,{"$f":"TEXT(TODAY(),\"hhhh\")","v":"január"}]
[null,{"$f":"YEAR(TODAY())","v":2017}]
[null,"Megjegyzés: A Készpénzforgalom táblázatot a program automatikusan kiszámítja a Havi bevétel és a Havi kiadás munkalap bejegyzései alapján."]
[null,"Készpénzforgalom","Tervezett","Tényleges","Különbség"]
[null,"Összes bevétel",{"$f":" Bevétel[[#Totals],[Tervezett]]","v":{"v":5700,"d":"5,700"}},{"$f":"Bevétel[[#Totals],[Tényleges]]","v":{"v":5500,"d":"5,500"}},{"$f":"Bevétel[[#Totals],[Különbség]]","v":-200}]
[null,"Összes kiadás",{"$f":"Kiadás[[#Totals],[Tervezett]]","v":{"v":3603,"d":"3,603"}},{"$f":"Kiadás[[#Totals],[Tényleges]]","v":{"v":3655,"d":"3,655"}},{"$f":"Kiadás[[#Totals],[Különbség]]","v":-52}]
[null,"Összes készpénz",{"$f":"C7-C8","v":{"v":2097,"d":"2,097"}},{"$f":"D7-D8","v":{"v":1845,"d":"1,845"}},{"$f":"SUBTOTAL(109,Készpénzforgalom[Különbség])","v":-252}]

{"sheet":"Havi bevétel","index":1,"n_rows":9,"n_cols":5,"rows_kept":9}
[null,{"$f":"Név","v":"Név"}]
[null,{"$f":"KöltségvetésCíme","v":"Családi költségvetés"}]
[null,{"$f":"Hónap","v":"január"}]
[null,{"$f":"Év","v":2017}]
[null,"Havi bevétel","Tervezett","Tényleges","Különbség"]
[null,"Bevétel 1",{"v":4000,"d":"4,000"},{"v":4000,"d":"4,000"},{"$f":"Bevétel[[#This Row],[Tényleges]]-Bevétel[[#This Row],[Tervezett]]","v":0}]
[null,"Bevétel 2",{"v":1400,"d":"1,400"},{"v":1500,"d":"1,500"},{"$f":"Bevétel[[#This Row],[Tényleges]]-Bevétel[[#This Row],[Tervezett]]","v":100}]
[null,"Egyéb bevétel",300,0,{"$f":"Bevétel[[#This Row],[Tényleges]]-Bevétel[[#This Row],[Tervezett]]","v":-300}]
[null,"Összes bevétel",{"$f":"SUBTOTAL(109,Bevétel[Tervezett])","v":{"v":5700,"d":"5,700"}},{"$f":"SUBTOTAL(109,Bevétel[Tényleges])","v":{"v":5500,"d":"5,500"}},{"$f":"SUBTOTAL(109,Bevétel[Különbség])","v":-200}]

{"sheet":"Havi kiadás","index":2,"n_rows":26,"n_cols":5,"rows_kept":26}
[null,{"$f":"Név","v":"Név"}]
[null,{"$f":"KöltségvetésCíme","v":"Családi költségvetés"}]
[null,{"$f":"Hónap","v":"január"}]
[null,{"$f":"Év","v":2017}]
[null,"Havi kiadás","Tervezett","Tényleges","Különbség"]
[null,"Lakás",{"v":1500,"d":"1,500"},{"v":1500,"d":"1,500"},{"$f":"Kiadás[[#This Row],[Tervezett]]-Kiadás[[#This Row],[Tényleges]]","v":0}]
[null,"Élelmiszer",250,280,{"$f":"Kiadás[[#This Row],[Tervezett]]-Kiadás[[#This Row],[Tényleges]]","v":-30}]
[null,"Telefon",38,38,{"$f":"Kiadás[[#This Row],[Tervezett]]-Kiadás[[#This Row],[Tényleges]]","v":0}]
[null,"Áram/gáz",65,78,{"$f":"Kiadás[[#This Row],[Tervezett]]-Kiadás[[#This Row],[Tényleges]]","v":-13}]
[null,"Víz/csatorna/szemét",25,21,{"$f":"Kiadás[[#This Row],[Tervezett]]-Kiadás[[#This Row],[Tényleges]]","v":4}]
[null,"Kábeltévé",75,83,{"$f":"Kiadás[[#This Row],[Tervezett]]-Kiadás[[#This Row],[Tényleges]]","v":-8}]
[null,"Internet",60,60,{"$f":"Kiadás[[#This Row],[Tervezett]]-Kiadás[[#This Row],[Tényleges]]","v":0}]
[null,"Karbantartás/javítások",0,60,{"$f":"Kiadás[[#This Row],[Tervezett]]-Kiadás[[#This Row],[Tényleges]]","v":-60}]
[null,"Gyermekgondozás",180,150,{"$f":"Kiadás[[#This Row],[Tervezett]]-Kiadás[[#This Row],[Tényleges]]","v":30}]
[null,"Tandíj",250,250,{"$f":"Kiadás[[#This Row],[Tervezett]]-Kiadás[[#This Row],[Tényleges]]","v":0}]
[null,"Társállatok",75,80,{"$f":"Kiadás[[#This Row],[Tervezett]]-Kiadás[[#This Row],[Tényleges]]","v":-5}]
[null,"Közlekedés",280,260,{"$f":"Kiadás[[#This Row],[Tervezett]]-Kiadás[[#This Row],[Tényleges]]","v":20}]
[null,"Kozmetikumok",75,65,{"$f":"Kiadás[[#This Row],[Tervezett]]-Kiadás[[#This Row],[Tényleges]]","v":10}]
[null,"Biztosítás",255,255,{"$f":"Kiadás[[#This Row],[Tervezett]]-Kiadás[[#This Row],[Tényleges]]","v":0}]
[null,"Hitelkártyák",100,100,{"$f":"Kiadás[[#This Row],[Tervezett]]-Kiadás[[#This Row],[Tényleges]]","v":0}]
[null,"Hitelek",0,0,{"$f":"Kiadás[[#This Row],[Tervezett]]-Kiadás[[#This Row],[Tényleges]]","v":0}]
[null,"Adók",0,0,{"$f":"Kiadás[[#This Row],[Tervezett]]-Kiadás[[#This Row],[Tényleges]]","v":0}]
[null,"Ajándékok/adományok",150,150,{"$f":"Kiadás[[#This Row],[Tervezett]]-Kiadás[[#This Row],[Tényleges]]","v":0}]
[null,"Megtakarítások",225,225,{"$f":"Kiadás[[#This Row],[Tervezett]]-Kiadás[[#This Row],[Tényleges]]","v":0}]
[null,"Egyéb",0,0,{"$f":"Kiadás[[#This Row],[Tervezett]]-Kiadás[[#This Row],[Tényleges]]","v":0}]
[null,"Összeg",{"$f":"SUBTOTAL(109,Kiadás[Tervezett])","v":{"v":3603,"d":"3,603"}},{"$f":"SUBTOTAL(109,Kiadás[Tényleges])","v":{"v":3655,"d":"3,655"}},{"$f":"SUBTOTAL(109,Kiadás[Különbség])","v":-52}]

{"sheet":"DIAGRAMADATOK","index":3,"n_rows":6,"n_cols":4,"rows_kept":6,"hidden":true}
[null,"DIAGRAMADATOK"]
[]
[null,null,"Tervezett","Tényleges"]
[null,"Készpénzforgalom",{"$f":"Készpénzforgalom[[#Totals],[Tervezett]]","v":2097},{"$f":"Készpénzforgalom[[#Totals],[Tényleges]]","v":1845}]
[null,"Havi bevétel",{"$f":"Bevétel[[#Totals],[Tervezett]]","v":5700},{"$f":"Bevétel[[#Totals],[Tényleges]]","v":5500}]
[null,"Havi kiadás",{"$f":"Kiadás[[#Totals],[Tervezett]]","v":3603},{"$f":"Kiadás[[#Totals],[Tényleges]]","v":3655}]